fUSD/lending_fUSD_20260115
["ID","MTS","AMOUNT","RATE_DAILY","PERIOD"]
[402061490,1768501868448,-500.0,0.0003589,10]
[402061491,1768501868460,-1128.38,0.0003589,10]
[402061492,1768501868471,-500.0,0.0003589,10]
[402061493,1768501868481,-500.0,0.0003589,10]
[402061494,1768501868495,-500.0,0.0003589,10]
[402061495,1768501868505,-500.0,0.0003589,10]
[402061496,1768501868515,-500.0,0.0003589,10]
[402061497,1768501868527,-500.0,0.0003589,10]
[402061498,1768501868538,-500.0,0.0003589,10]
[402061499,1768501868550,-500.0,0.0003589,10]
[402061500,1768501868560,-543.90313928,0.0003589,10]
[402061501,1768501868570,-655.22,0.0003589,10]
[402061502,1768501868581,-1010.06,0.0003589,10]
[402061503,1768501868591,-500.0,0.0003589,10]
[402061504,1768501868601,-525.91878982,0.0003589,10]
[402061505,1768501868611,-500.0,0.0003589,10]
[402061506,1768501868622,-533.03294655,0.0003589,10]
[402061507,1768501868632,-500.0,0.0003589,10]
[402061508,1768501868642,-500.0,0.0003589,10]
[402061509,1768501868654,-609.1,0.0003589,10]
[402061510,1768501868665,-534.25015818,0.0003589,10]
[402061511,1768501868676,-500.0,0.0003589,10]
[402061512,1768501868687,-500.0,0.0003589,10]
[402061513,1768501868698,-541.89422356,0.0003589,10]
[402061514,1768501868710,-500.0,0.0003589,10]
[402061515,1768501868720,-500.0,0.0003589,10]
[402061516,1768501868730,-500.0,0.0003589,10]
[402061517,1768501868742,-500.0,0.0003589,10]
[402061518,1768501868752,-164.1,0.0003589,5]
[402061519,1768501868763,-500.0,0.0003589,10]
[402061520,1768501868773,-531.99,0.0003589,10]
[402061521,1768501868783,-500.0,0.0003589,10]
[402061522,1768501868794,-500.0,0.0003589,10]
[402061523,1768501868805,-500.0,0.0003589,10]
[402061524,1768501868815,-500.0,0.0003589,10]
[402061525,1768501868825,-955.31,0.0003589,10]
[402061526,1768501868835,-500.0,0.0003589,10]
[402061527,1768501868845,-500.0,0.0003589,10]
[402061528,1768501868856,-500.0,0.0003589,10]
[402061529,1768501868866,-500.0,0.0003589,10]
[402061530,1768501868876,-948.96,0.0003589,10]
[402061531,1768501868886,-500.0,0.0003589,10]
[402061532,1768501868897,-1055.3,0.0003589,10]
[402061533,1768501868907,-500.0,0.0003589,10]
[402061534,1768501868918,-500.0,0.0003589,10]
[402061535,1768501868928,-803.84,0.0003589,10]
[402061536,1768501868938,-500.0,0.0003589,10]
[402061537,1768501868949,-500.0,0.0003589,10]
[402061538,1768501868960,-500.0,0.0003589,10]
[402061539,1768501869234,-500.0,0.0003589,10]
[402061540,1768501869248,-873.76,0.0003589,10]
[402061541,1768501869258,-597.35,0.0003589,10]
[402061542,1768501869268,-495.52,0.0003589,10]
[402061543,1768501869278,-500.0,0.0003589,10]
[402061544,1768501869288,-500.0,0.0003589,10]
[402061545,1768501869298,-1229.59,0.0003589,10]
[402061546,1768501869307,-500.0,0.0003589,10]
[402061547,1768501869316,-500.0,0.0003589,10]
[402061548,1768501869326,-500.0,0.0003589,10]
[402061549,1768501869336,-500.0,0.0003589,10]
[402061550,1768501869346,-500.0,0.0003589,10]
[402061551,1768501869367,-500.0,0.0003589,10]
[402061552,1768501869377,-529.45395237,0.0003589,10]
[402061553,1768501869387,-604.86,0.0003589,10]
[402061554,1768501869396,-587.1681903,0.0003589,10]
[402061555,1768501869406,-583.80672665,0.0003589,10]
[402061556,1768501869842,-80.82327335,0.0003589,10]
[402061557,1768501869853,-298.30613201,0.0003589,10]
[402061558,1768501869864,-201.69386799,0.0003589,10]
[402061559,1768501869875,-500.0,0.0003589,10]
[402061560,1768501869885,-964.27,0.0003589,10]
[402061561,1768501869895,-500.0,0.0003589,10]
[402061562,1768501869905,-802.1,0.0003589,10]
[402061563,1768501869916,-500.0,0.0003589,10]
[402061564,1768501869927,-500.0,0.0003589,10]
[402061565,1768501869937,-566.25,0.0003589,10]
[402061566,1768501869947,-500.0,0.0003589,10]
[402061567,1768501869956,-500.0,0.0003589,10]
[402061568,1768501869965,-500.0,0.0003589,10]
[402061569,1768501869974,-500.0,0.0003589,10]
[402061570,1768501869984,-526.2,0.0003589,10]
[402061571,1768501869993,-664.48,0.0003589,10]
[402061572,1768501870002,-500.0,0.0003589,10]
[402061573,1768501870011,-500.0,0.0003589,10]
[402061574,1768501870021,-500.0,0.0003589,10]
[402061575,1768501870030,-500.0,0.0003589,10]
[402061576,1768501870039,-500.0,0.0003589,10]
[402061577,1768501870048,-500.0,0.0003589,10]
[402061578,1768501870057,-500.0,0.0003589,10]
[402061579,1768501870066,-500.0,0.0003589,10]
[402061580,1768501870076,-500.0,0.0003589,10]
[402061581,1768501870085,-500.0,0.0003589,10]
[402061582,1768501870095,-500.0,0.0003589,10]
[402061583,1768501870103,-500.0,0.0003589,10]
[402061584,1768501870113,-500.0,0.0003589,10]
[402061585,1768501870122,-500.0,0.0003589,10]
[402061586,1768501870131,-500.0,0.0003589,10]
[402061587,1768501870140,-500.0,0.0003589,10]
[402061588,1768501870150,-500.0,0.0003589,10]
[402061589,1768501870159,-500.0,0.0003589,10]
[402061590,1768501870168,-500.0,0.0003589,10]
[402061591,1768501870178,-1000.0,0.0003589,2]
[402061592,1768501870188,-500.0,0.0003589,10]
[402061593,1768501870197,-500.0,0.0003589,10]
[402061594,1768501870206,-500.0,0.0003589,10]
[402061595,1768501870216,-530.31017152,0.0003589,10]
[402061596,1768501870225,-913.2,0.0003589,10]
[402061597,1768501870234,-500.0,0.0003589,10]
[402061598,1768501870243,-488.62307489,0.0003589,10]
[402061599,1768501870252,-500.0,0.0003589,10]
[402061600,1768501870261,-500.0,0.0003589,10]
[402061601,1768501870271,-500.0,0.0003589,10]
[402061602,1768501870280,-500.0,0.0003589,10]
[402061603,1768501870290,-599.55,0.0003589,10]
[402061604,1768501870299,-500.0,0.0003589,10]
[402061605,1768501870308,-500.0,0.0003589,10]
[402061606,1768501870317,-500.0,0.0003589,10]
[402061607,1768501870327,-500.0,0.0003589,10]
[402061608,1768501870336,-500.0,0.0003589,10]
[402061609,1768501870345,-500.0,0.0003589,10]
[402061610,1768501870356,-500.0,0.0003589,10]
[402061611,1768501870366,-903.95,0.0003589,10]
[402061612,1768501870375,-500.0,0.0003589,10]
[402061613,1768501870384,-500.0,0.0003589,10]
[402061614,1768501870393,-500.0,0.0003589,10]
[402061615,1768501870402,-507.87349683,0.0003589,10]
[402061616,1768501870411,-500.0,0.0003589,10]
[402061617,1768501870421,-938.32,0.0003589,10]
[402061618,1768501870430,-500.0,0.0003589,10]
[402061619,1768501870439,-500.0,0.0003589,10]
[402061620,1768501870450,-760.54,0.0003589,10]
[402061621,1768501870466,-500.0,0.0003589,10]
[402061622,1768501870476,-561.04,0.0003589,10]
[402061623,1768501870486,-500.0,0.0003589,10]
[402061624,1768501870496,-500.0,0.0003589,10]
[402061625,1768501870507,-500.0,0.0003589,10]
[402061626,1768501870517,-500.0,0.0003589,10]
[402061627,1768501870526,-500.0,0.0003589,10]
[402061628,1768501870536,-500.0,0.0003589,10]
[402061629,1768501870546,-500.0,0.0003589,10]
[402061630,1768501870555,-549.35296794,0.0003589,10]
[402061631,1768501870565,-500.0,0.0003589,10]
[402061632,1768501870575,-534.72,0.0003589,10]
[402061633,1768501870586,-610.08112026,0.0003589,10]
[402061634,1768501870595,-500.0,0.0003589,10]
[402061635,1768501870605,-500.0,0.0003589,10]
[402061636,1768501870615,-507.32747403,0.0003589,10]
[402061637,1768501870624,-621.12,0.0003589,10]
[402061638,1768501870634,-500.0,0.0003589,10]
[402061639,1768501870643,-861.4,0.0003589,10]
[402061640,1768501870652,-500.0,0.0003589,10]
[402061641,1768501870662,-653.95,0.0003589,10]
[402061642,1768501870671,-500.0,0.0003589,10]
[402061643,1768501870680,-500.0,0.0003589,10]
[402061644,1768501870689,-500.0,0.0003589,10]
[402061645,1768501870699,-500.0,0.0003589,10]
[402061646,1768501870708,-500.0,0.0003589,10]
[402061647,1768501870718,-500.0,0.0003589,10]
[402061648,1768501870727,-500.0,0.0003589,10]
[402061649,1768501870737,-500.0,0.0003589,10]
[402061650,1768501870747,-500.0,0.0003589,10]
[402061651,1768501870756,-500.0,0.0003589,10]
[402061652,1768501870766,-500.0,0.0003589,10]
[402061653,1768501870775,-606.46,0.0003589,10]
[402061654,1768501870785,-500.0,0.0003589,10]
[402061655,1768501870794,-500.0,0.0003589,10]
[402061656,1768501870803,-500.0,0.0003589,10]
[402061657,1768501870813,-314.55822195,0.0003589,10]
[402061658,1768501870823,-500.0,0.0003589,10]
[402061659,1768501870835,-500.0,0.0003589,10]
[402061660,1768501870847,-500.0,0.0003589,10]
[402061661,1768501870858,-568.43,0.0003589,10]
[402061662,1768501870867,-675.08,0.0003589,10]
[402061663,1768501870877,-500.0,0.0003589,10]
[402061664,1768501870887,-1969.54,0.0003589,10]
[402061665,1768501870897,-863.81,0.0003589,10]
[402061666,1768501870906,-30.62716542,0.0003589,10]
[402061667,1768501870933,-462.84989598,0.00035616,10]
[402061668,1768501870946,-37.15010402,0.00035616,10]
[402061669,1768501870955,-290.26086298,0.00035616,10]
[402061670,1768501870967,-209.73913702,0.00035616,10]
[402061671,1768501870977,-469.37283458,0.0003589,10]
[402061672,1768501870987,-500.0,0.0003589,10]
[402061673,1768501870996,-587.26542615,0.0003589,10]
[402061674,1768501871006,-379.04253857,0.0003589,10]
[402061675,1768501871033,-120.95746143,0.0003589,10]
[402061676,1768501871042,-500.0,0.0003589,10]
[402061677,1768501871052,-514.78575012,0.0003589,10]
[402061678,1768501871061,-188.98435538,0.0003589,2]
[402061679,1768501871178,-500.0,0.00035616,10]
[402061680,1768501871188,-311.01564462,0.0003589,2]
[402061681,1768501871198,-725.17,0.0003589,10]
[402061682,1768501871208,-539.13,0.0003589,10]
[402061683,1768501871217,-500.0,0.0003589,2]
[402061684,1768501871227,-698.53,0.0003589,10]
[402061685,1768501871237,-500.0,0.0003589,10]
[402061686,1768501871248,-500.0,0.0003589,10]
[402061687,1768501871258,-500.0,0.0003589,10]
[402061688,1768501871268,-500.0,0.0003589,10]
[402061689,1768501871277,-622.26,0.0003589,10]
[402061690,1768501871287,-500.0,0.0003589,10]
[402061691,1768501871297,-500.0,0.0003589,10]
[402061692,1768501871306,-539.13623262,0.0003589,10]
[402061693,1768501871316,-500.0,0.0003589,10]
[402061694,1768501871325,-806.22,0.0003589,10]
[402061695,1768501871335,-500.0,0.0003589,10]
[402061696,1768501871345,-1317.17,0.0003589,10]
[402061697,1768501871355,-635.51,0.0003589,10]
[402061698,1768501871364,-641.38,0.0003589,10]
[402061699,1768501871374,-559.59,0.0003589,10]
[402061700,1768501871473,-500.0,0.0003589,10]
[402061701,1768501871484,-314.64996979,0.0003589,10]
[402061702,1768501880931,500.0,0.00016973,2]
[402061703,1768501884422,500.0,0.00016973,2]
[402061704,1768501889834,2500.0,0.00017262,2]
[402061706,1768501925753,-530.66980693,0.00017462,2]
[402061707,1768501927213,-193.0,0.00017462,2]
[402061708,1768501930945,-192.25646779,0.00017462,2]
[402061709,1768501940696,-84.07372528,0.00017462,2]
[402061710,1768501940719,-303.20627472,0.00017471,2]
[402061711,1768501955776,-9.34030371,0.00017471,2]
[402061712,1768501955798,-195.0,0.0001748,2]
[402061713,1768501955818,-162.55196502,0.00017499,2]
[402061714,1768501958853,-1299.18365218,0.00017499,2]
[402061715,1768501962089,-179.84290307,0.00017499,2]
[402061716,1768501964166,-521.37970225,0.00017499,2]
[402061717,1768501966804,-293.03618238,0.00017499,2]
[402061718,1768501968997,-184.01706027,0.00017499,2]
[402061719,1768501971519,-208.024128,0.00017499,2]
[402061721,1768501974738,-173.41473106,0.00017499,2]
[402061722,1768501977926,-252.32852918,0.00017499,2]
[402061723,1768501980491,-204.20353221,0.00017499,2]
[402061724,1768501982004,-469.93561114,0.00017499,2]
[402061725,1768501983865,500.0,0.00016973,2]
[402061726,1768501984065,-473.60693589,0.00017499,2]
[402061727,1768501985122,6000.01,0.00017262,2]
[402061728,1768501985149,10000.01,0.00017262,2]
[402061729,1768501985174,10000.01,0.00017262,2]
[402061730,1768501985199,10000.01,0.00017262,2]
[402061731,1768501985226,10000.01,0.00017262,2]
[402061732,1768501985254,10000.01,0.00017262,2]
[402061733,1768501985281,10000.01,0.00017262,2]
[402061734,1768501985307,10000.01,0.00017262,2]
[402061735,1768501985894,-215.02730144,0.00017262,2]
[402061736,1768501987868,-283.29410064,0.00017262,2]
[402061737,1768501989213,-207.36309694,0.00017262,2]
[402061738,1768501991772,-311.8925321,0.00017262,2]
[402061739,1768501994156,-503.79482695,0.00017262,2]
[402061740,1768501995579,-289.88821402,0.00017262,2]
[402061741,1768501997630,-172.83258673,0.00017261,2]
[402061742,1768501999570,-161.8759404,0.00016973,2]
[402061743,1768502001522,-221.5918402,0.00016973,2]
[402061744,1768502003678,-116.5322194,0.00016973,2]
[402061745,1768502003707,-156.25071586,0.00016973,2]
[402061746,1768502006222,-242.82934068,0.00016973,2]
[402061747,1768502008768,-100.91994346,0.00016973,2]
[402061748,1768502008790,-399.08005654,0.00017261,2]
[402061755,1768502136973,647.63,0.00026034,120]
[402061756,1768502137327,647.63,0.00028638,120]
[402061760,1768502342649,-500.0,0.00016973,2]
[402061761,1768502342680,-501.32992223,0.00016973,2]
[402061762,1768502342711,-500.0,0.00016973,2]
[402061763,1768502342742,-578.47506735,0.00017066,2]
[402061764,1768502342774,-195.0,0.00017066,2]
[402061765,1768502342804,-270.0,0.0001716,2]
[402061766,1768502342834,-300.0,0.0001716,2]
[402061767,1768502342863,-1200.0,0.00017161,2]
[402061768,1768502342891,-300.0,0.00017161,2]
[402061769,1768502342921,-300.0,0.00017161,2]
[402061770,1768502342949,-160.40002084,0.00017161,2]
[402061771,1768502343127,-389.59997916,0.00017161,2]
[402061772,1768502343653,-300.0,0.0001716,2]
[402061773,1768502345462,-9010.41002084,0.00017162,2]
[402061774,1768502345574,-4722.26091007,0.00017162,2]
[402061775,1768502345606,-132.40555207,0.00017162,2]
[402061776,1768502345645,-290.67707572,0.00017162,2]
[402061777,1768502345695,-605.35186747,0.00017162,2]
[402061778,1768502345727,-306.59827176,0.00017252,2]
[402061779,1768502345758,-500.0,0.00017261,2]
[402061780,1768502345789,-500.0,0.00017261,2]
[402061781,1768502345821,-500.0,0.00017261,2]
[402061782,1768502345853,-500.0,0.00017261,2]
[402061783,1768502345884,-500.0,0.00017261,2]
[402061784,1768502345915,-524.52832093,0.00017261,2]
[402061785,1768502345945,-500.0,0.00017261,2]
[402061786,1768502345977,-500.0,0.00017261,2]
[402061787,1768502346121,-500.0,0.00016973,2]
[402061788,1768502346153,-500.0,0.00017261,2]
[402061789,1768502346183,-500.0,0.00017261,2]
[402061790,1768502346213,-500.0,0.00017261,2]
[402061791,1768502346244,-500.0,0.00017261,2]
[402061792,1768502346275,-452.89830856,0.00017261,2]
[402061793,1768502346309,-500.0,0.00017261,2]
[402061794,1768502346342,-500.0,0.00017261,2]
[402061795,1768502346374,-500.0,0.00017261,2]
[402061796,1768502346407,-500.0,0.00017261,2]
[402061797,1768502346626,-500.0,0.00017261,2]
[402061798,1768502346658,-500.0,0.00017261,2]
[402061799,1768502346692,-500.0,0.00017261,2]
[402061800,1768502347208,-500.0,0.00017261,2]
[402061801,1768502347240,-500.0,0.00017261,2]
[402061802,1768502347271,-500.0,0.00017261,2]
[402061803,1768502347301,-500.0,0.00017261,2]
[402061804,1768502347334,-500.0,0.00017261,2]
[402061805,1768502347365,-500.0,0.00017261,2]
[402061806,1768502347395,-464.38603329,0.00017261,2]
[402061807,1768502347501,-71.23793342,0.00017261,2]
[402061808,1768502347529,-250.0,0.00017262,2]
[402061809,1768502347557,-414.59659535,0.00017262,2]
[402061810,1768502347592,-600.0,0.00017262,2]
[402061811,1768502401201,1200.0,0.00017261,2]
[402061812,1768502404121,296.0,0.00017262,2]
[402061813,1768502407918,365.42570112,0.00016973,2]
[402061814,1768502408417,195.96,0.00017252,2]
[402061815,1768502408629,195.96,0.00017252,2]
[402061816,1768502408834,195.96,0.00017252,2]
[402061817,1768502410782,7550.70429888,0.00017252,2]
[402061818,1768502410803,183.14570112,0.00017252,2]
[402061819,1768502410977,7733.85,0.00017252,2]
[402061820,1768502412101,165.08,0.00017252,2]
[402061821,1768502435939,10000.01,0.00017162,2]
[402061822,1768502435962,2359.39383781,0.00017162,2]
[402061825,1768502455132,403.56791164,0.00017162,2]
[402061826,1768502461845,300.0,0.00017261,2]
[402061827,1768502472483,1526.8908,0.00017162,2]
[402061828,1768502473821,250.0,0.00017,2]
[402061829,1768502477512,653.33600069,0.00017162,2]
[402061830,1768502483217,500.0,0.00017261,2]
[402061831,1768502483262,500.0,0.00017261,2]
[402061832,1768502483341,417.48800021,0.00017261,2]
[402061833,1768502494105,1242.042,0.00016917,2]
[402061834,1768502494141,183.771,0.00016917,2]
[402061835,1768502516483,5429.47972163,0.00017162,2]
[402061836,1768502522412,550.0,0.00017261,2]
[402061850,1768502527098,289.39001262,0.00017261,2]
[402061851,1768502576238,234.50326485,0.00017261,2]
[402061852,1768502576261,265.49673515,0.00017261,2]
[402061853,1768502576333,500.0,0.00017261,2]
[402061854,1768502576425,435.94347868,0.00017261,2]
[402061855,1768502581688,300.0,0.00017261,2]
[402061856,1768502595652,269.04527444,0.00017162,2]
[402061857,1768502611386,479.79,0.00017162,2]
[402061858,1768502631310,-964.36581001,0.00017262,2]
[402061859,1768502634370,-300.0,0.00017262,2]
[402061860,1768502636493,-206.46217732,0.00017262,2]
[402061861,1768502638003,-156.09199774,0.00017262,2]
[402061862,1768502639707,-255.04792585,0.00017262,2]
[402061863,1768502640951,-354.73263195,0.00017262,2]
[402061864,1768502644006,-481.38223628,0.00017262,2]
[402061865,1768502648465,-188.45032922,0.00017262,2]
[402061866,1768502650903,-186.83759342,0.00017262,2]
[402061867,1768502652592,-280.02587259,0.00017262,2]
[402061868,1768502654040,-304.05069773,0.00017262,2]
[402061869,1768502655545,-250.0,0.00017262,2]
[402061870,1768502657086,-178.18123788,0.00017262,2]
[402061871,1768502658766,-383.86966997,0.00017262,2]
[402061872,1768502661007,-521.84831812,0.00017262,2]
[402061873,1768502662747,-203.39282246,0.00017262,2]
[402061874,1768502664690,-566.72918714,0.00017262,2]
[402061875,1768502666134,-418.73260776,0.00017262,2]
[402061876,1768502671667,-264.77940075,0.00017262,2]
[402061877,1768502673572,-578.3391022,0.00017262,2]
[402061878,1768502677240,-231.82683937,0.00017262,2]
[402061879,1768502679361,-182.35978323,0.00017262,2]
[402061880,1768502681538,-307.59393408,0.00017262,2]
[402061881,1768502683921,-184.46511752,0.00017262,2]
[402061882,1768502686038,-349.03312016,0.00017262,2]
[402061883,1768502688621,-346.79869449,0.00017262,2]
[402061884,1768502690106,-200.10748678,0.00017262,2]
[402061885,1768502693253,-311.5501207,0.00017262,2]
[402061886,1768502695266,-177.02003732,0.00017262,2]
[402061887,1768502696167,189.96,0.00030137,120]
[402061888,1768502698044,-241.02894289,0.00017262,2]
[402061889,1768502700915,-261.36385949,0.00017262,2]
[402061890,1768502701174,1200.0,0.00017261,2]
[402061891,1768502701855,295.0,0.00017261,2]
[402061892,1768502703712,-238.94714755,0.00017262,2]
[402061893,1768502704970,-364.91422489,0.00017262,2]
[402061894,1768502708847,-324.88147254,0.00017262,2]
[402061895,1768502710883,-235.66563197,0.00017262,2]
[402061896,1768502714086,-253.39799004,0.00017262,2]
[402061900,1768502717372,-399.92843578,0.00017262,2]
[402061903,1768502718800,-179.3342065,0.00017262,2]
[402061904,1768502722508,-300.98183784,0.00017262,2]
[402061905,1768502725354,-186.26906812,0.00017262,2]
[402061906,1768502726767,-340.26343159,0.00017262,2]
[402061907,1768502729303,-155.85892198,0.00017262,2]
[402061908,1768502732585,-225.65242709,0.00017262,2]
[402061909,1768502734009,-818.24543962,0.00017262,2]
[402061910,1768502736351,-250.0,0.00017262,2]
[402061911,1768502737037,179.36351628,0.00017162,2]
[402061912,1768502738008,-408.65401964,0.00017262,2]
[402061913,1768502750698,-217.9782436,0.00017262,2]
[402061914,1768502752773,-465.28404926,0.00017262,2]
[402061915,1768502757662,-212.64289387,0.00017262,2]
[402061916,1768502758447,571.66900056,0.00017162,2]
[402061917,1768502759166,-220.50650631,0.00017262,2]
[402061918,1768502761298,300.0,0.00017261,2]
[402061919,1768502762429,-197.99917281,0.00017262,2]
[402061920,1768502764012,-220.24431258,0.00017262,2]
[402061921,1768502765758,-253.46353561,0.00017262,2]
[402061922,1768502766951,-394.69662759,0.00017262,2]
[402061923,1768502768553,-255.96119749,0.00017262,2]
[402061924,1768502770683,-294.27108077,0.00017262,2]
[402061925,1768502772078,-351.54260527,0.00017262,2]
[402061926,1768502773512,-225.71947906,0.00017262,2]
[402061927,1768502775551,-374.67708398,0.00017262,2]
[402061928,1768502775780,1000.0,0.00017261,2]
[402061929,1768502777654,-265.59194196,0.00017262,2]
[402061930,1768502779323,-220.47777362,0.00017262,2]
[402061931,1768502781926,-176.3260472,0.00017262,2]
[402061932,1768502785981,-374.66500799,0.00017262,2]
[402061933,1768502787650,-151.39680068,0.00017262,2]
[402061934,1768502791595,-343.46428555,0.00017262,2]
[402061935,1768502793684,-210.71644318,0.00017262,2]
[402061936,1768502795640,-190.79785253,0.00017262,2]
[402061937,1768502797105,-491.34645316,0.00017262,2]
[402061938,1768502798616,-192.71582831,0.00017262,2]
[402061939,1768502800129,-193.82804188,0.00017262,2]
[402061940,1768502802139,-395.15780787,0.00017262,2]
[402061941,1768502804903,-616.5331254,0.00017262,2]
[402061942,1768502807542,-207.1827983,0.00017262,2]
[402061943,1768502810713,-182.25904905,0.00017262,2]
[402061944,1768502812307,-184.55796464,0.00017262,2]
[402061945,1768502814518,-378.62450157,0.00017262,2]
[402061946,1768502816854,-450.30390765,0.00017262,2]
[402061947,1768502820044,-349.41863399,0.00017262,2]
[402061948,1768502822180,4203.70199489,0.00017162,2]
[402061949,1768502822204,8229.78751209,0.00017162,2]
[402061950,1768502822604,-200.0,0.00017262,2]
[402061951,1768502824040,-300.0,0.00017262,2]
[402061952,1768502825632,-170.20645557,0.00017262,2]
[402061953,1768502828666,-281.60740407,0.00017262,2]
[402061954,1768502830640,500.0,0.00017262,2]
[402061955,1768502831266,500.0,0.00017262,2]
[402061956,1768502831981,500.0,0.00017262,2]
[402061957,1768502832439,-277.104718,0.00017262,2]
[402061958,1768502832475,270.22248791,0.00017262,2]
[402061959,1768502832497,229.77751209,0.00017262,2]
[402061960,1768502833091,500.0,0.00017262,2]
[402061961,1768502833721,500.0,0.00017262,2]
[402061962,1768502834372,500.0,0.00017262,2]
[402061963,1768502834954,500.0,0.00017262,2]
[402061964,1768502834991,-231.48647863,0.00017262,2]
[402061965,1768502836992,-294.1945897,0.00017262,2]
[402061966,1768502838239,500.0,0.00017262,2]
[402061967,1768502839553,-180.60937,0.00017262,2]
[402061968,1768502841976,-302.01870332,0.00017262,2]
[402061969,1768502843707,151.0,0.00017262,2]
[402061970,1768502844311,151.0,0.00017262,2]
[402061971,1768502844914,151.0,0.00017262,2]
[402061972,1768502845228,-187.85577662,0.00017262,2]
[402061973,1768502845538,151.0,0.00017262,2]
[402061974,1768502845582,172.71,0.00016712,2]
[402061975,1768502846197,151.0,0.00017262,2]
[402061976,1768502846766,151.0,0.00017262,2]
[402061977,1768502847209,-211.50403521,0.00017262,2]
[402061978,1768502847383,151.0,0.00017262,2]
[402061979,1768502848034,151.0,0.00017262,2]
[402061980,1768502848658,151.0,0.00017262,2]
[402061981,1768502849135,-234.69378492,0.00017262,2]
[402061982,1768502849288,151.0,0.00017262,2]
[402061983,1768502850401,151.0,0.00017262,2]
[402061984,1768502850568,-269.66769649,0.00017262,2]
[402061985,1768502851568,4715.16,0.00015168,2]
[402061986,1768502851963,500.0,0.00017261,2]
[402061987,1768502852193,500.0,0.00017261,2]
[402061988,1768502852444,408.98199245,0.00017261,2]
[402061989,1768502853819,-596.10329838,0.00017262,2]
[402061990,1768502857371,-242.61970597,0.00017262,2]
[402061991,1768502860462,-265.35230462,0.00017262,2]
[402061992,1768502862021,500.0,0.00017261,2]
[402061993,1768502862061,-495.81137759,0.00017262,2]
[402061994,1768502864089,-292.88949726,0.00017262,2]
[402061995,1768502865930,-174.6720109,0.00017262,2]
[402061996,1768502869226,-296.10975086,0.00017262,2]
[402061997,1768502872965,-168.00441332,0.00017262,2]
[402061998,1768502875002,-601.58032445,0.00017262,2]
[402061999,1768502877102,-220.7081094,0.00017262,2]
[402062000,1768502877378,178.77656326,0.00017162,2]
[402062001,1768502880945,-300.0,0.00017262,2]
[402062002,1768502882349,-304.46185172,0.00017262,2]
[402062003,1768502885284,500.0,0.00016973,2]
[402062004,1768502886773,-675.75973896,0.00017262,2]
[402062005,1768502888329,-204.7351323,0.00017262,2]
[402062006,1768502890369,-173.09021075,0.00017262,2]
[402062007,1768502894033,-155.559821,0.00017262,2]
[402062008,1768502895515,-300.0,0.00017262,2]
[402062009,1768502897551,863.38144429,0.00017261,2]
[402062010,1768502897574,336.61855571,0.00017261,2]
[402062011,1768502897605,-168.00441332,0.00017262,2]
[402062012,1768502900616,-213.77511729,0.00017262,2]
[402062013,1768502903590,-232.09640326,0.00017262,2]
[402062014,1768502905562,-258.83768649,0.00017262,2]
[402062015,1768502907062,-350.4536441,0.00017262,2]
[402062016,1768502909614,-258.52612354,0.00017262,2]
[402062017,1768502911064,-197.03,0.00017262,2]
[402062018,1768502913144,-257.17570933,0.00017262,2]
[402062019,1768502915115,-500.0,0.00017262,2]
[402062020,1768502919361,-283.9270258,0.00017262,2]